bitfinex-derivatives/quotes_ETHF0:USTF0_20250727
["timestamp","ask_amount","ask_price","bid_price","bid_amount"]
[1753615301354,6.79667,3833.2,3833.1,4.23458]
[1753615301546,6.79667,3833.2,3833.1,5.74738]
[1753615302347,6.2751,3833.2,3833.1,5.74738]
[1753615302549,6.79667,3833.2,3833.1,5.74738]
[1753615303049,6.79667,3833.2,3833.1,3.02308]
[1753615303253,6.79669,3833.1,3833.0,4.49689]
[1753615303445,21.634,3833.6,3832.6,2.7633]
[1753615303446,3.7371,3833.0,3832.6,2.7633]
[1753615303651,6.2751,3832.7,3832.6,5.2258]
[1753615303846,6.79674,3832.7,3832.6,5.2258]
[1753615304054,6.2751,3832.7,3832.6,5.74745]
[1753615304451,6.79674,3832.7,3832.6,5.2258]
[1753615305347,6.79674,3832.7,3832.6,2.4625]
[1753615306058,6.79674,3832.7,3832.6,1.8582]
[1753615306560,6.79678,3832.4,3832.3,5.2258]
[1753615307063,6.79682,3832.1,3832.0,3.9753]
[1753615307454,6.79682,3832.1,3832.0,5.2258]
[1753615308252,5.28672,3832.1,3832.0,6.62623]
[1753615308450,0.52172,3832.1,3832.0,6.62623]
[1753615308658,0.52172,3832.1,3832.0,6.1045]
[1753615309060,2.02562,3832.1,3832.0,6.1045]
[1753615310060,2.94552,3832.1,3832.0,6.1045]
[1753615310360,6.79682,3832.1,3832.0,3.9753]
[1753615310562,5.28673,3832.0,3831.9,3.2078]
[1753615310864,6.79683,3832.0,3831.9,3.2078]
[1753615312256,3.05976,3831.8,3831.7,3.713]
[1753615312559,6.79686,3831.8,3831.7,3.713]
[1753615312762,6.79686,3831.8,3831.7,5.2258]
[1753615315056,5.28676,3831.8,3831.7,6.1045]
[1753615315262,3.97246,3831.8,3831.7,6.1045]
[1753615315463,0.52176,3831.8,3831.7,6.62627]
[1753615315855,0.52175,3831.9,3831.8,0.52174]
[1753615316060,0.52174,3832.0,3831.9,6.62623]
[1753615316462,0.52174,3832.0,3831.9,6.1045]
[1753615316764,0.52174,3832.0,3831.9,9.3123]
[1753615317165,0.52174,3832.0,3831.9,9.83405]
[1753615317467,0.52173,3832.1,3832.0,6.62622]
[1753615318962,1.10563,3832.1,3832.0,6.62622]
[1753615319163,6.62063,3832.1,3832.0,5.2258]
[1753615319468,4.29457,3831.7,3831.6,7.683]
[1753615319665,6.62067,3831.7,3831.6,10.96849]
[1753615320062,1.42857,3831.7,3831.6,11.88419]
[1753615320563,2.89667,3831.7,3831.6,11.88419]
[1753615320968,5.20137,3831.7,3831.6,11.88419]
[1753615321658,6.62067,3831.7,3831.6,11.88419]
[1753615321962,2.4861,3831.5,3831.3,4.6671]
[1753615322164,3.00791,3831.4,3831.3,3.2078]
[1753615322361,3.00791,3831.4,3831.3,0.9749]
[1753615322561,5.20141,3831.4,3831.3,0.9749]
[1753615323372,5.20141,3831.4,3831.3,2.4342]
[1753615323568,5.20141,3831.4,3831.3,3.3809]
[1753615324269,1.98997,3831.0,3830.9,5.6142]
[1753615324465,1.98997,3831.0,3830.9,6.5299]
[1753615324466,3.3929,3831.0,3830.9,6.5299]
[1753615324770,6.62077,3831.0,3830.9,2.92828]
[1753615325666,6.62077,3831.0,3830.9,2.4064]
[1753615326166,6.62077,3831.0,3830.9,5.1697]
[1753615328474,3.91477,3831.0,3830.9,6.60728]
[1753615328864,0.9068,3831.2,3831.0,0.52185]
[1753615329064,0.9068,3831.6,3831.5,2.9282]
[1753615329276,2.89669,3831.6,3831.5,6.0854]
[1753615329474,2.89669,3831.6,3831.5,0.9467]
[1753615329475,6.62069,3831.6,3831.5,0.9467]
[1753615329871,3.00796,3831.1,3831.0,1.46857]
[1753615330065,6.62076,3831.1,3831.0,1.46857]
[1753615330265,2.4861,3830.9,3830.4,1.304]
[1753615330471,2.4861,3830.6,3830.3,3.72976]
[1753615330668,6.62085,3830.4,3830.3,7.0735]
[1753615330975,6.0989,3830.2,3830.1,5.69169]
[1753615331378,6.0989,3830.2,3830.1,6.60739]
[1753615331676,5.20158,3830.2,3830.1,6.60739]
[1753615331867,3.91488,3830.2,3830.1,6.60739]
[1753615332375,6.62088,3830.2,3830.1,6.60739]
[1753615332772,6.62088,3830.2,3830.1,1.4593]
[1753615332976,0.52202,3830.0,3829.8,1.49721906]
[1753615333176,0.52202,3830.0,3829.9,0.9467]
[1753615333177,6.62092,3830.0,3829.9,0.9467]
[1753615333773,6.62092,3830.0,3829.9,2.4064]
[1753615334079,6.62092,3830.0,3829.9,3.8657]
[1753615334274,6.62091,3830.0,3829.9,5.1697]
[1753615334678,6.0989,3830.0,3829.9,5.69172]
[1753615334879,1.99006,3830.4,3830.3,1.5596]
[1753615335080,5.20156,3830.4,3830.3,6.0854]
[1753615335281,6.62086,3830.4,3830.3,6.0854]
[1753615335480,6.62086,3830.4,3830.3,5.1697]
[1753615335782,6.62085,3830.4,3830.3,5.1697]
[1753615336087,6.62085,3830.4,3830.3,5.69166]
[1753615336285,6.62085,3830.4,3830.3,5.1697]
[1753615336584,6.62085,3830.4,3830.3,5.69166]
[1753615338679,6.62085,3830.4,3830.3,4.38766]
[1753615341194,6.0989,3830.4,3830.3,4.38766]
[1753615341689,6.0989,3830.4,3830.3,3.8657]
[1753615341690,6.62085,3830.4,3830.3,3.8657]
[1753615341994,6.62085,3830.4,3830.3,1.46866]
[1753615342697,6.0989,3830.4,3830.3,1.46866]
[1753615342892,6.0989,3830.4,3830.3,5.69166]
[1753615343387,3.2078,3830.6,3830.5,0.52194]
[1753615343596,5.20151,3830.8,3830.7,2.4064]
[1753615343792,6.62085,3830.4,3830.3,5.1697]
[1753615343992,6.62085,3830.4,3830.3,3.8657]
[1753615344287,6.0989,3830.4,3830.2,0.52197]
[1753615344498,6.62086,3830.3,3830.2,0.52197]
[1753615344689,6.62089,3830.1,3830.0,10.9687]
[1753615345692,6.62089,3830.1,3830.0,5.277]
[1753615345893,6.62092,3829.9,3829.8,0.19321906]
[1753615347298,6.62097,3829.5,3829.4,3.2078]
[1753615347500,3.82004,3828.3,3828.2,2.72328512]
[1753615347798,6.0395,3828.3,3828.2,2.72328512]
[1753615348104,6.56174,3828.3,3828.2,2.72328512]
[1753615348602,6.0395,3828.3,3828.2,3.88798512]
[1753615348800,6.0395,3828.3,3828.2,0.01828512]
[1753615348801,9.76954,3828.3,3828.2,0.01828512]
[1753615349395,1.3055,3828.6,3828.2,3.40368512]
[1753615349396,0.8632,3828.6,3828.2,3.40368512]
[1753615349700,3.3173,3828.6,3828.5,6.61261]
[1753615349904,0.8632,3829.0,3828.9,1.5118]
[1753615350094,0.8632,3829.3,3829.2,0.52211]
[1753615350302,1.98868,3829.5,3829.4,2.4778]
[1753615350599,4.22248,3829.5,3829.4,6.0904]
[1753615350800,4.22248,3829.5,3829.4,5.1828]
[1753615350801,6.58108,3829.5,3829.4,5.1828]
[1753615351001,6.58108,3829.5,3829.4,0.966]
[1753615351203,6.58111,3829.2,3829.1,3.8697]
[1753615351506,6.58117,3828.9,3828.8,5.1828]
[1753615351905,9.78897,3828.9,3828.8,5.1828]
[1753615352195,1.30523,3829.4,3828.6,0.52219]
[1753615352196,0.8632,3829.2,3829.1,2.4778]
[1753615352398,0.6034,3829.4,3829.3,0.52209]
[1753615352603,0.6034,3829.4,3829.3,3.90749]
[1753615352604,2.387,3829.4,3829.3,3.90749]
[1753615352908,4.6307,3829.4,3829.3,3.90749]
[1753615353206,5.15279,3829.4,3829.3,6.0904]
[1753615353404,6.059,3829.4,3829.3,6.6125]
[1753615353603,6.059,3829.4,3829.3,6.0904]
[1753615353801,6.059,3829.4,3829.3,6.6125]
[1753615354199,6.059,3829.4,3829.3,5.1828]
[1753615354404,6.58109,3829.4,3829.3,5.1828]
[1753615355104,6.059,3829.4,3829.3,5.7049]
[1753615356009,6.059,3829.4,3829.3,6.6125]
[1753615356207,6.58109,3829.4,3829.3,5.1828]
[1753615356410,2.4541,3829.4,3829.0,2.705]
[1753615356602,0.52212,3829.2,3829.0,2.705]
[1753615356805,2.4541,3829.2,3829.1,2.99992]
[1753615357005,6.059,3829.2,3829.1,5.70492]
[1753615357408,6.059,3829.2,3829.1,5.1828]
[1753615357409,6.58111,3829.2,3829.1,5.1828]
[1753615359307,6.059,3829.2,3828.7,0.9076]
[1753615359612,6.059,3828.8,3828.7,2.99998]
[1753615360009,4.6307,3828.8,3828.7,6.61258]
[1753615360410,1.4666,3828.8,3828.7,6.61258]
[1753615360612,1.3134,3829.2,3829.1,2.99993]
[1753615360613,1.9168,3829.2,3829.1,2.99993]
[1753615360810,2.78,3829.2,3829.1,6.61253]
[1753615361118,3.7004,3829.2,3829.1,6.61253]
[1753615361411,3.8824,3829.5,3829.4,2.4778]
[1753615361616,6.58107,3829.5,3829.4,6.0904]
[1753615362718,6.059,3829.5,3829.4,6.61249]
[1753615363019,6.58107,3829.5,3829.4,6.61249]
[1753615363220,6.58107,3829.5,3829.4,6.0904]
[1753615363818,6.58107,3829.5,3829.4,5.70489]
[1753615364018,6.58107,3829.5,3829.4,5.1828]
[1753615364714,0.52213,3829.1,3829.0,4.2168]
[1753615364918,9.78893,3829.1,3829.0,5.70494]
[1753615365114,9.78893,3829.1,3829.0,0.966]
[1753615365415,6.58117,3828.8,3828.7,5.1828]
[1753615366217,6.58117,3828.8,3828.7,5.70498]
[1753615366520,3.2078,3829.1,3829.0,2.4778]
[1753615366716,3.2078,3829.1,3829.0,6.61254]
[1753615368014,4.33333,3829.1,3829.0,6.61254]
[1753615368214,5.19653,3829.1,3829.0,6.61254]
[1753615368711,4.6744,3829.1,3829.0,6.61254]
[1753615368915,5.19653,3829.1,3829.0,6.61254]
[1753615369224,9.78893,3829.1,3829.0,3.26]
[1753615369524,9.78893,3829.1,3829.0,5.70494]
[1753615369723,9.78893,3829.1,3829.0,6.61254]
[1753615370225,9.78893,3829.1,3829.0,6.0904]
[1753615370919,9.78893,3829.1,3829.0,5.1828]
[1753615371724,9.78893,3829.1,3829.0,3.8697]
[1753615372122,6.58117,3828.8,3828.7,5.1828]
[1753615373816,6.059,3828.8,3828.7,3.7909]
[1753615374027,6.059,3828.8,3828.7,5.1828]
[1753615374227,6.58117,3828.8,3828.7,5.1828]
[1753615375423,6.58117,3828.8,3828.7,2.4778]
[1753615375824,6.58117,3828.8,3828.7,3.8697]
[1753615376025,6.58117,3828.8,3828.7,5.1828]
[1753615376728,6.58117,3828.8,3828.7,1.5118]
[1753615376923,6.58117,3828.8,3828.4,4.7773]
[1753615376924,2.97631,3828.5,3828.4,4.7773]
[1753615377129,6.58121,3828.5,3828.4,5.1828]
[1753615378022,6.58121,3828.5,3828.4,6.0478]
[1753615378522,6.58121,3828.5,3828.4,3.8697]
[1753615378724,6.57124,3828.3,3828.2,0.01828512]
[1753615378924,9.77904,3828.3,3828.2,0.01828512]
[1753615380929,9.77904,3828.3,3827.8,0.19332001]
[1753615380930,2.95459,3827.9,3827.8,0.19332001]
[1753615381132,1.30586,3827.6,3826.9,3.2078]
[1753615381432,0.52247,3826.6,3826.5,6.1432]
[1753615381631,1.3394,3827.0,3825.9,3.46834632]
[1753615381632,22.10441,3827.0,3826.9,6.1432]
[1753615382424,0.52241,3827.0,3826.9,6.1432]
[1753615382632,4.70085,3827.5,3827.4,6.1432]
[1753615382833,5.57525,3827.5,3827.4,6.1432]
[1753615383032,6.57135,3827.5,3827.4,5.2782]
[1753615383228,5.1419,3826.4,3826.3,2.5168]
[1753615383538,3.8025,3826.4,3826.3,4.645]
[1753615383737,3.8025,3826.4,3826.3,6.1432]
[1753615384034,5.1419,3826.4,3826.3,6.1432]
[1753615384931,1.0843,3826.4,3826.3,6.1432]
[1753615385134,0.5225,3826.4,3826.3,6.1432]
[1753615385536,0.5225,3826.4,3826.3,6.66571]
[1753615385738,0.5225,3826.4,3826.3,6.1432]
[1753615389835,3.2078,3826.9,3826.3,2.5168]
[1753615390031,0.52248,3826.6,3826.5,6.66567]
[1753615390238,0.52243,3827.0,3826.9,3.03921]
[1753615390535,5.13968,3827.4,3827.3,6.66557]
[1753615390736,3.73018,3827.4,3827.3,6.66557]
[1753615391037,0.52236,3827.5,3827.4,3.03915]
[1753615391236,0.52235,3827.6,3827.5,0.52233]
[1753615391436,0.52233,3827.8,3827.7,5.16731]
[1753615391641,0.52233,3827.8,3827.7,6.66551]
[1753615391830,0.8477,3828.1,3827.9,2.1282]
[1753615392139,9.77902,3828.4,3828.3,5.2782]
[1753615394539,6.57122,3828.4,3828.3,6.1432]
[1753615396240,9.77902,3828.4,3828.3,5.2782]
[1753615396440,9.77902,3828.4,3828.3,4.015]
[1753615396939,6.57126,3828.1,3828.0,5.2782]
[1753615397341,6.57126,3828.1,3828.0,6.1432]
[1753615398435,6.57126,3828.1,3828.0,5.2782]
[1753615401043,6.57126,3828.1,3828.0,4.015]
[1753615401942,6.57126,3828.1,3828.0,0.6]
[1753615402146,6.57126,3828.1,3827.7,2.1282]
[1753615402147,6.57131,3827.8,3827.7,4.015]
[1753615402446,6.57131,3827.8,3827.7,5.2782]
[1753615403240,6.57131,3827.8,3827.7,4.015]
[1753615403441,6.57136,3827.4,3827.3,5.2782]
[1753615403846,3.80236,3827.4,3827.3,6.1432]
[1753615404047,0.52236,3827.4,3827.3,6.1432]
[1753615404748,2.80626,3827.4,3827.3,6.1432]
[1753615404941,5.14176,3827.4,3827.3,6.1432]
[1753615405136,6.57136,3827.4,3827.3,5.2782]
[1753615406742,6.57136,3827.4,3827.3,6.1432]
[1753615407548,6.57136,3827.4,3827.3,2.4514]
[1753615407844,6.57136,3827.4,3827.3,3.913]
[1753615408041,6.57136,3827.4,3827.3,5.2671]
[1753615408842,6.57136,3827.4,3827.3,3.913]
[1753615409046,6.57136,3827.4,3827.3,1.8578]
[1753615409249,6.6133,3827.1,3827.0,5.2831]
[1753615409743,2.955,3826.4,3826.3,3.929]
[1753615409943,6.6134,3826.4,3826.3,4.34401]
[1753615410149,6.6134,3826.4,3826.3,6.1323]
[1753615410844,6.6134,3826.4,3826.3,5.2831]
[1753615411045,0.52247,3826.7,3826.6,1.87655]
[1753615411242,0.52247,3826.7,3826.6,6.65475]
[1753615414244,0.8446,3826.9,3826.5,1.30621]
[1753615414448,31.38809,3827.2,3827.1,5.2831]
[1753615414644,9.82109,3827.2,3827.1,5.2831]
[1753615414842,8.39619,3827.2,3827.1,6.6547]
[1753615416249,7.00729,3827.2,3827.1,6.6547]
[1753615416847,8.39619,3827.2,3827.1,6.6547]
[1753615417249,8.39619,3827.2,3827.1,6.1323]
[1753615417449,9.82109,3827.2,3827.1,6.6547]
[1753615418949,9.82109,3827.2,3827.1,6.1323]
[1753615420254,9.82109,3827.2,3827.1,5.2831]
[1753615420450,0.52243,3826.9,3826.8,2.7969]
[1753615420648,4.34381,3827.1,3827.0,2.98981]
[1753615420848,2.95491,3827.1,3827.0,6.65471]
[1753615421253,3.79951,3827.1,3827.0,6.65471]
[1753615421454,3.2771,3827.1,3827.0,6.65471]
[1753615421648,3.7995,3827.1,3827.0,6.65471]
[1753615422249,5.1884,3827.1,3827.0,6.65471]
[1753615423254,6.6133,3827.1,3827.0,6.65471]
[1753615423454,6.6133,3827.1,3827.0,6.1323]
[1753615424256,6.6133,3827.1,3827.0,6.65471]
[1753615424554,6.6133,3827.1,3827.0,6.1323]
[1753615429565,6.6133,3827.1,3827.0,5.2831]
[1753615430959,6.6133,3827.1,3827.0,5.2831]
[1753615431957,6.61334,3826.8,3826.7,9.0995]
[1753615432160,6.61334,3826.8,3826.7,5.277]
[1753615432361,9.82114,3826.8,3826.7,5.277]
[1753615435558,5.96374,3826.8,3826.7,11.4093]
[1753615435763,9.82114,3826.8,3826.7,11.4093]
[1753615436062,9.82114,3826.8,3826.7,6.1323]
[1753615436259,4.3439,3826.4,3826.3,6.1323]
[1753615436452,6.6134,3826.4,3826.3,5.2831]
[1753615437154,6.6134,3826.4,3826.3,6.1323]
[1753615437557,6.6134,3826.4,3826.3,5.2831]
[1753615441062,6.6134,3826.4,3826.3,2.4073]
[1753615441266,3.00215,3826.0,3825.9,3.9448]
[1753615441567,6.65835,3826.0,3825.9,5.2485]
[1753615442062,6.65835,3826.0,3825.9,6.1739]
[1753615442963,3.00217,3825.9,3825.8,2.66502107]
[1753615443263,6.65837,3825.9,3825.8,4.13822107]
[1753615443467,6.65837,3825.9,3825.5,3.2078]
[1753615443468,6.65842,3825.5,3825.4,3.9448]
[1753615443665,6.65842,3825.5,3825.4,5.2485]
[1753615444267,6.65842,3825.5,3825.4,3.9448]
[1753615445063,1.43271,3825.7,3825.6,2.99419]
[1753615445265,1.43271,3825.7,3825.6,6.1739]
[1753615445464,5.6232,3826.0,3825.9,6.1739]
[1753615445660,3.73035,3826.0,3825.9,6.1739]
[1753615445862,2.3665,3826.3,3826.2,2.99412]
[1753615445863,1.43262,3826.3,3826.2,2.99412]
[1753615446067,2.93792,3826.3,3826.2,6.1739]
[1753615446267,6.65832,3826.3,3826.2,3.9448]
[1753615446566,6.65837,3825.9,3825.8,3.397]
[1753615446767,9.86617,3825.9,3825.8,2.4716]
[1753615446968,9.86617,3825.9,3825.8,5.2485]
[1753615447468,6.1358,3825.9,3825.8,6.69648]
[1753615447769,5.20196,3825.9,3825.8,6.69648]
[1753615449460,0.9101,3826.5,3826.0,0.9254]
[1753615449660,0.5877,3826.1,3826.0,6.1739]
[1753615449865,3.7051,3826.1,3826.0,6.1739]
[1753615450065,4.22765,3826.1,3826.0,6.69644]
[1753615450358,1.4326,3826.4,3826.3,3.9474]
[1753615450564,1.4326,3826.4,3826.3,5.39271]
[1753615450969,1.4978,3826.4,3826.3,6.69641]
[1753615451664,2.0203,3826.4,3826.3,6.69641]
[1753615451969,2.9379,3826.4,3826.3,6.69641]
[1753615452167,4.2276,3826.4,3826.3,6.69641]
[1753615452361,4.6642,3826.6,3826.4,2.4716]
[1753615452565,0.9101,3826.5,3826.4,6.6964]
[1753615453167,1.4978,3826.5,3826.4,6.6964]
[1753615453467,6.65828,3826.5,3826.4,6.6964]
[1753615453764,6.65828,3826.5,3826.4,5.771]
[1753615454163,6.65828,3826.5,3826.4,6.6964]
[1753615455568,6.65828,3826.5,3826.4,1.4682]
[1753615455961,6.65828,3826.5,3826.4,5.771]
[1753615456167,6.1358,3826.5,3826.4,6.6964]
[1753615456364,4.6794,3826.5,3826.4,6.6964]
[1753615456564,1.4978,3826.5,3826.4,6.6964]
[1753615456863,3.2078,3826.6,3826.5,6.69638]
[1753615457070,4.7056,3826.6,3826.5,6.69638]
[1753615457362,3.2078,3826.6,3826.5,6.69638]
[1753615457562,3.3897,3827.0,3826.9,6.69631]
[1753615457763,3.2078,3827.1,3827.0,2.99402]
[1753615457971,3.7302,3827.1,3827.0,6.69632]
[1753615458365,4.6403,3827.1,3827.0,6.69632]
[1753615458560,4.7056,3827.1,3827.0,6.69632]
[1753615461374,3.2078,3827.6,3827.5,2.04825]
[1753615461578,3.2078,3827.6,3827.5,6.69625]
[1753615461766,4.1179,3827.6,3827.5,6.69625]
[1753615462170,4.7056,3827.6,3827.5,6.69625]
[1753615462474,3.30981,3827.8,3827.7,6.69622]
[1753615462682,4.94582835,3827.8,3827.7,6.69622]
[1753615462884,7.37652835,3827.8,3827.7,6.69622]
[1753615463278,7.37652274,3827.8,3827.7,6.69622]
[1753615463782,6.65811,3827.8,3827.7,6.69622]
[1753615464278,6.65811,3827.8,3827.7,5.2485]
[1753615465278,1.5053,3827.3,3827.2,4.82517]
[1753615465484,6.65817,3827.3,3827.2,6.69627]
[1753615465783,6.1358,3827.3,3827.2,6.69627]
[1753615465985,1.4978,3827.3,3827.2,6.69627]
[1753615466284,2.4154,3827.6,3827.5,6.69625]
[1753615466584,1.11002,3827.8,3827.7,2.99392]
[1753615466783,2.02012,3827.8,3827.7,6.69622]
[1753615466980,5.20172,3827.8,3827.7,6.69622]
[1753615467282,6.65812,3827.8,3827.7,6.69622]
[1753615467477,6.65812,3827.8,3827.7,6.1739]
[1753615467687,6.65812,3827.8,3827.7,1.8685]
[1753615467882,6.65812,3827.8,3827.7,0.9457]
[1753615468676,6.72032,3827.7,3827.6,0.52233]
[1753615468879,6.72032,3827.7,3827.6,1.54273]
[1753615469083,6.72032,3827.7,3827.6,3.04223]
[1753615469282,6.72032,3827.7,3827.6,3.90773]
[1753615469994,6.72032,3827.7,3827.6,5.74673]
[1753615470289,6.72032,3827.7,3827.6,6.66913]
[1753615471383,2.03052,3827.7,3827.6,6.66913]
[1753615471687,0.52232,3827.7,3827.6,6.66913]
[1753615472086,1.41872,3827.7,3827.6,6.66913]
[1753615472280,2.03052,3827.7,3827.6,6.66913]
[1753615472784,5.23712,3827.7,3827.6,6.66913]
[1753615472984,6.72032,3827.7,3827.6,6.66913]
[1753615473687,6.72032,3827.7,3827.6,5.2244]
[1753615473887,6.72032,3827.7,3827.6,2.40823]
[1753615474084,2.98273,3827.6,3827.5,0.52234]
[1753615474283,6.72033,3827.6,3827.5,0.52234]
[1753615474685,2.98276,3827.5,3827.4,2.97715]
[1753615474890,6.72036,3827.5,3827.4,5.74675]
[1753615475193,6.72036,3827.5,3827.4,2.40825]
[1753615475378,6.72036,3827.5,3827.4,1.8859]
[1753615475584,6.72039,3827.3,3827.2,5.2244]
[1753615475785,6.71618347,3827.3,3827.2,5.74678]
[1753615476989,1.12998347,3827.3,3827.2,6.66918]
[1753615477183,2.03057,3827.3,3827.2,6.66918]
[1753615477685,3.2078,3827.5,3827.4,1.95676]
[1753615477988,6.09085,3827.5,3827.4,6.66916]
[1753615478188,9.92815,3827.5,3827.4,6.66916]
[1753615479187,8.44495,3827.5,3827.4,6.66916]
[1753615480186,9.92815,3827.5,3827.4,6.66916]
[1753615482386,9.4058,3827.5,3827.4,6.66916]
[1753615482592,3.2078,3827.5,3827.4,6.66916]
[1753615483487,1.13413,3827.7,3827.6,2.97713]
[1753615483689,2.03053,3827.7,3827.6,6.66913]
[1753615483894,2.88303,3827.7,3827.6,6.66913]
[1753615484087,5.23713,3827.7,3827.6,6.66913]
[1753615484294,6.72033,3827.7,3827.6,6.66913]
[1753615489195,6.198,3827.7,3827.6,6.66913]
[1753615489896,6.72032,3827.7,3827.6,6.66913]
[1753615490298,4.7148,3827.7,3827.6,6.66913]
[1753615490999,5.23712,3827.7,3827.6,6.66913]
[1753615491402,6.72032,3827.7,3827.6,2.02183]
[1753615491901,6.72032,3827.7,3827.6,5.17783]
[1753615492101,6.72032,3827.7,3827.6,5.74673]
[1753615492503,6.72032,3827.7,3827.6,3.3854]
[1753615492699,6.72032,3827.7,3827.6,1.8859]
[1753615492900,6.72032,3827.7,3827.6,1.0204]
[1753615494005,6.72032,3827.7,3827.6,1.54273]
[1753615494202,2.4604,3827.1,3827.0,3.9543]
[1753615494503,3.3568,3827.1,3827.0,6.66921]
[1753615494798,2.4604,3827.8,3827.1,1.30601]
[1753615494999,6.198,3827.8,3827.7,5.2244]
[1753615495399,6.72031,3827.8,3827.7,5.74672]
[1753615496306,6.72031,3827.8,3827.7,6.66912]
[1753615498106,6.198,3827.8,3827.7,6.66912]
[1753615498897,3.2078,3828.8,3828.7,1.5184]
[1753615499101,7.49007,3828.8,3828.7,6.2206]
[1753615499296,2.4538,3828.4,3828.1,0.52226]
[1753615499499,6.72877,3828.2,3828.1,3.02516]
[1753615499998,0.52239,3827.3,3827.2,0.52237]
[1753615500202,6.72889,3827.3,3827.2,4.31217]
[1753615500503,6.72889,3827.3,3827.2,1.8952]
[1753615500702,6.72889,3827.3,3827.2,0.9876]
[1753615501005,6.72889,3827.3,3827.2,1.50999]
[1753615501398,0.9151,3827.7,3827.4,3.7898]
[1753615501599,0.9151,3827.7,3827.6,6.74293]
[1753615501805,6.09689,3828.0,3827.9,6.74289]
[1753615502602,2.983,3828.2,3828.1,1.13307]
[1753615502808,3.50525,3828.2,3828.1,3.02827]
[1753615503001,6.72875,3828.2,3828.1,6.74287]
[1753615503706,6.72875,3828.2,3828.1,6.2206]
[1753615503908,2.97606,3828.1,3828.0,0.52227]
[1753615504110,5.19749,3828.0,3827.9,4.31208]
[1753615504406,9.93659,3828.0,3827.9,5.82738]
[1753615504708,2.97612,3827.8,3827.7,3.02831]
[1753615504908,2.97612,3827.8,3827.7,4.54361]
[1753615505201,6.2065,3827.8,3827.7,5.82741]
[1753615505402,6.72881,3827.8,3827.7,6.74291]
[1753615506108,4.7396,3828.0,3827.9,6.74289]
[1753615506303,1.5318,3828.0,3827.9,6.74289]
[1753615506504,2.3668,3828.2,3828.1,6.74286]
[1753615506704,5.5746,3828.4,3828.3,6.74284]
[1753615506904,6.09682,3828.4,3828.3,6.74284]
[1753615507103,8.40522,3828.4,3828.3,6.74284]
[1753615507605,9.93652,3828.4,3828.3,6.74284]
[1753615508510,9.4143,3828.4,3828.3,6.74284]
[1753615509404,0.6167,3828.6,3828.5,0.6108]
[1753615509606,1.5318,3828.6,3828.5,3.02821]
[1753615509806,2.3668,3828.6,3828.5,3.02821]
[1753615510008,2.3668,3828.6,3828.5,6.74281]
[1753615510507,4.1229,3829.2,3828.7,2.506]
[1753615510699,4.1229,3829.2,3828.3,3.2078]
[1753615510700,6.72863,3829.1,3829.0,5.82724]
[1753615510903,6.72863,3829.1,3829.0,5.3051]
[1753615511103,6.72863,3829.1,3829.0,5.82724]
[1753615511309,6.72863,3829.1,3829.0,3.32434]
[1753615511703,6.2065,3829.1,3829.0,5.82724]
[1753615511905,4.6752,3829.1,3829.0,6.74274]
[1753615512405,6.72863,3829.1,3829.0,6.74274]
[1753615512709,6.72863,3829.1,3829.0,5.82724]
[1753615513110,5.19733,3829.1,3829.0,6.74274]
[1753615513510,6.2065,3829.1,3829.0,6.74274]
[1753615513811,6.72863,3829.1,3829.0,6.74274]
[1753615514412,3.2078,3829.2,3829.1,3.02813]
[1753615514613,3.2078,3829.2,3829.1,6.74273]
[1753615515008,4.1229,3829.2,3829.1,6.74273]
[1753615515514,3.2078,3829.6,3829.5,6.74267]
[1753615516108,4.7396,3829.6,3829.5,6.74267]
[1753615517410,4.7396,3829.6,3829.2,1.30528]
[1753615517411,2.8381,3829.8,3829.7,5.45885]
[1753615517617,1.5318,3829.8,3829.7,6.74265]
[1753615517815,6.72853,3829.8,3829.7,6.74265]
[1753615518012,6.72853,3829.8,3829.7,5.82715]
[1753615519718,6.2065,3829.8,3829.7,5.82715]
[1753615520019,6.72853,3829.8,3829.7,6.74265]
[1753615521716,6.72853,3829.8,3829.7,5.82715]
[1753615521912,6.2065,3829.2,3829.1,10.5821]
[1753615523028,6.72861,3829.2,3829.1,11.10422]
[1753615523925,6.2065,3829.2,3829.1,11.10422]
[1753615524720,6.2065,3829.2,3829.1,12.01972]
[1753615524917,6.2065,3829.2,3829.1,6.74272]
[1753615525924,6.72862,3829.2,3829.1,6.74272]
[1753615526321,6.72862,3829.2,3829.1,5.82722]
[1753615526526,5.3715,3828.9,3828.8,4.0213]
[1753615526826,6.72868,3828.9,3828.8,4.54345]
[1753615527327,6.2065,3828.9,3828.8,5.82725]
[1753615527514,6.72866,3828.9,3828.8,6.74275]
[1753615527719,5.19736,3828.9,3828.8,6.74275]
[1753615528015,6.66286,3828.9,3828.8,6.74275]
[1753615529320,1.4252,3829.2,3829.1,1.97343]
[1753615529518,1.4252,3829.2,3829.1,6.64083]
[1753615530721,0.8463,3829.7,3829.6,2.92046]
[1753615530921,0.8463,3829.7,3829.6,6.64076]
[1753615531216,1.4252,3829.7,3829.6,6.64076]
[1753615537028,3.5719,3829.7,3829.6,6.64076]
[1753615537232,4.5092,3829.7,3829.6,6.64076]
[1753615537427,5.9747,3829.7,3829.6,6.64076]
[1753615538030,4.5092,3829.7,3829.6,6.64076]
[1753615538533,3.2559,3829.7,3829.6,6.64076]
[1753615539128,0.8463,3829.7,3829.6,6.64076]
[1753615540328,1.4252,3829.7,3829.6,6.64076]